fUST/lending_fUST_20250503
["ID","MTS","AMOUNT","RATE_DAILY","PERIOD"]
[359700193,1746263438367,-455.38867,0.0001926,2]
[359700194,1746263438376,-455.38867,0.0001926,2]
[359700195,1746263438387,-151.0,0.0001926,2]
[359700196,1746263438396,-500.0,0.00019273,2]
[359700197,1746263438406,-500.0,0.00019273,2]
[359700198,1746263438416,-500.0,0.00019273,2]
[359700199,1746263438425,-500.0,0.00019273,2]
[359700200,1746263438435,-500.0,0.00019273,2]
[359700201,1746263438444,-500.0,0.00019273,2]
[359700202,1746263438454,-612.94179964,0.00019273,2]
[359700203,1746263438464,-500.0,0.00019273,2]
[359700204,1746263438476,-500.76130684,0.00019273,2]
[359700205,1746263438487,-500.0,0.00019273,2]
[359700207,1746263438497,-151.0,0.00019329,2]
[359700209,1746263438507,-240.140147,0.00019329,2]
[359700211,1746263438517,-455.38867,0.00019329,2]
[359700212,1746263438527,-455.38867,0.00019329,2]
[359700213,1746263438536,-151.0,0.00019329,2]
[359700214,1746263438545,-30773.7153382,0.00019329,2]
[359700215,1746263439142,-164.64,0.00019055,3]
[359700216,1746263439152,-240.95067491,0.00019452,2]
[359700217,1746263439162,-151.0,0.00019452,2]
[359700218,1746263439172,-152.804389,0.00019452,2]
[359700219,1746263439182,-151.0,0.00019452,2]
[359700220,1746263439192,-153.890407,0.00019452,2]
[359700221,1746263439201,-151.0,0.00019452,2]
[359700222,1746263439212,-400.0,0.00019452,2]
[359700223,1746263439222,-409.62346496,0.00019452,2]
[359700224,1746263439232,-151.0,0.00019452,2]
[359700225,1746263439241,-214.546324,0.00019452,2]
[359700226,1746263439250,-400.0,0.00019452,2]
[359700227,1746263439260,-511.7286299,0.00019452,2]
[359700228,1746263439269,-400.0,0.00019452,2]
[359700229,1746263439279,-400.0,0.00019452,2]
[359700230,1746263439288,-400.0,0.00019452,2]
[359700231,1746263439298,-260.77896385,0.00019452,2]
[359700232,1746263439307,-203.67097672,0.00019452,2]
[359700233,1746263439316,-420.19308043,0.00019452,2]
[359700234,1746263439326,-400.0,0.00019452,2]
[359700235,1746263439335,-400.0,0.00019452,2]
[359700236,1746263439345,-400.0,0.00019452,2]
[359700237,1746263439354,-400.0,0.00019452,2]
[359700238,1746263439363,-80.79510767,0.00019452,2]
[359700576,1746263443369,-400.0,0.00019178,2]
[359700578,1746263443378,-400.0,0.00019178,2]
[359700580,1746263443388,-306.25464655,0.00019178,2]
[359700868,1746263446449,-93.74535345,0.00019178,2]
[359700870,1746263446459,-484.62,0.00019178,2]
[359700872,1746263446471,-198.65978215,0.00019178,2]
[359700874,1746263446480,-319.20489233,0.00019452,2]
[359700876,1746263446491,-400.0,0.00019452,2]
[359700878,1746263446501,-400.0,0.00019452,2]
[359700880,1746263446510,-400.0,0.00019452,2]
[359700882,1746263446520,-340.94781541,0.00019452,2]
[359701052,1746264440184,-250.0,0.0001809,2]
[359701053,1746264440205,-39.35082571,0.000186,2]
[359701055,1746264452123,-992.64917429,0.000186,2]
[359701056,1746264452143,-283.5029442,0.000189,2]
[359701057,1746264452162,-181.84715313,0.00019,7]
[359701058,1746264452182,-669.0,0.00019063,2]
[359701059,1746264452205,-300.0,0.00019063,2]
[359701060,1746264452226,-400.0,0.00019064,2]
[359701061,1746264452247,-400.0,0.00019064,2]
[359701062,1746264452266,-400.0,0.00019064,2]
[359701063,1746264452287,-481.21,0.00019064,2]
[359701064,1746264452308,-326.74762925,0.00019064,2]
[359701082,1746264553221,-540.44031639,0.00018,2]
[359701084,1746264573167,-3917.403,0.00018,2]
[359701144,1746264638406,-179.09409936,0.00018,2]
[359701146,1746264638416,-189.0019628,0.000189,2]
[359701148,1746264638425,-502.90072755,0.00019041,2]
[359701150,1746264638434,-300.0,0.00019063,2]
[359701152,1746264638443,-73.25237075,0.00019064,2]
[359701154,1746264638453,-400.0,0.00019064,2]
[359701156,1746264638462,-400.0,0.00019064,2]
[359701158,1746264638471,-400.0,0.00019064,2]
[359701160,1746264638480,-400.0,0.00019064,2]
[359701162,1746264638489,-400.0,0.00019064,2]
[359701164,1746264638498,-1357.43,0.00019064,2]
[359701166,1746264638507,-400.0,0.00019064,2]
[359701168,1746264638517,-400.0,0.00019064,2]
[359701170,1746264638525,-400.0,0.00019064,2]
[359701172,1746264638535,-435.06274108,0.00019064,2]
[359701174,1746264638544,-400.0,0.00019064,2]
[359701176,1746264638553,-154.191354,0.00019065,2]
[359701179,1746264638563,-250.64,0.00019065,2]
[359701181,1746264638573,-400.0,0.00019065,2]
[359701182,1746264638583,-400.0,0.00019065,2]
[359701185,1746264638593,-400.0,0.00019065,2]
[359701187,1746264638602,-400.0,0.00019065,2]
[359701189,1746264638611,-400.0,0.00019065,2]
[359701191,1746264638620,-400.0,0.00019065,2]
[359701193,1746264638630,-400.0,0.00019065,2]
[359701195,1746264638639,-400.0,0.00019065,2]
[359701196,1746264638650,-400.0,0.00019065,2]
[359701197,1746264638659,-405.28051826,0.00019068,2]
[359701198,1746264638669,-500.0,0.00019069,2]
[359701200,1746264638678,-500.0,0.00019069,2]
[359701202,1746264638687,-500.0,0.00019069,2]
[359701204,1746264638696,-500.0,0.00019069,2]
[359701206,1746264638705,-500.0,0.00019069,2]
[359701207,1746264638714,-270.4359674,0.00019069,2]
[359701208,1746264638723,-500.0,0.00019069,2]
[359701209,1746264638733,-500.0,0.00019069,2]
[359701210,1746264638742,-500.0,0.00019069,2]
[359701211,1746264638751,-281.17425017,0.00019069,2]
[359701212,1746264638761,-500.0,0.00019069,2]
[359701213,1746264638770,-500.0,0.00019069,2]
[359701214,1746264638780,-500.0,0.00019069,2]
[359701215,1746264638789,-500.0,0.00019069,2]
[359701216,1746264638798,-500.0,0.00019069,2]
[359701217,1746264638807,-500.0,0.00019069,2]
[359701218,1746264638816,-500.0,0.00019069,2]
[359701219,1746264638825,-500.0,0.00019069,2]
[359701220,1746264638834,-500.0,0.00019069,2]
[359701221,1746264638844,-500.0,0.00019069,2]
[359701222,1746264638853,-500.0,0.00019069,2]
[359701223,1746264638862,-500.0,0.00019069,2]
[359701224,1746264638871,-500.0,0.00019069,2]
[359701225,1746264638880,-500.0,0.00019069,2]
[359701226,1746264638889,-500.0,0.00019069,2]
[359701227,1746264638899,-500.0,0.00019069,2]
[359701228,1746264638908,-500.0,0.00019069,2]
[359701229,1746264638917,-500.0,0.00019069,2]
[359701230,1746264638926,-500.0,0.00019069,2]
[359701231,1746264638935,-500.0,0.00019069,2]
[359701232,1746264638945,-500.0,0.00019069,2]
[359701233,1746264638954,-463.73113739,0.00019069,2]
[359701234,1746264638963,-500.0,0.00019069,2]
[359701235,1746264638972,-500.0,0.00019069,2]
[359701236,1746264638981,-500.0,0.00019069,2]
[359701237,1746264638991,-500.0,0.00019069,2]
[359701238,1746264639000,-500.0,0.00019069,2]
[359701239,1746264639010,-500.0,0.00019069,2]
[359701240,1746264639019,-500.0,0.00019069,2]
[359701241,1746264639028,-500.0,0.00019069,2]
[359701242,1746264639038,-298.04062476,0.00019069,2]
[359701243,1746264639047,-174.14851862,0.00019071,2]
[359701244,1746264639057,-400.0,0.00019168,2]
[359701245,1746264639067,-401.01,0.00019169,2]
[359701246,1746264639079,-400.0,0.00019169,2]
[359701247,1746264639089,-557.04,0.00019169,2]
[359701248,1746264639097,-400.0,0.00019169,2]
[359701249,1746264639106,-2736.26,0.00019169,2]
[359701250,1746264639116,-400.0,0.00019169,2]
[359701251,1746264639125,-400.0,0.00019169,2]
[359701252,1746264639135,-400.0,0.00019169,2]
[359701253,1746264639144,-462.08,0.00019169,2]
[359701254,1746264639154,-403.79,0.00019169,2]
[359701255,1746264639163,-1012.71,0.00019169,2]
[359701256,1746264639172,-499.9,0.00019169,2]
[359701257,1746264639181,-1201.72,0.00019169,2]
[359701258,1746264639191,-195.08853927,0.0001917,2]
[359701259,1746264639201,-2483.97,0.00019171,2]
[359701260,1746264639210,-547.85,0.00019171,2]
[359701261,1746264639219,-686.27,0.00019171,2]
[359701262,1746264639229,-400.0,0.00019171,2]
[359701263,1746264639238,-400.0,0.00019171,2]
[359701264,1746264639247,-568.12,0.00019171,2]
[359701265,1746264639257,-400.0,0.00019171,2]
[359701266,1746264639267,-456.59,0.00019171,2]
[359701267,1746264639276,-400.0,0.00019171,2]
[359701268,1746264639286,-1124.35,0.00019171,2]
[359701269,1746264639295,-400.0,0.00019171,2]
[359701270,1746264639304,-400.0,0.00019171,2]
[359701271,1746264639314,-628.25,0.00019171,2]
[359701272,1746264639324,-400.0,0.00019171,2]
[359701273,1746264639333,-588.7,0.00019171,2]
[359701274,1746264639342,-400.0,0.00019171,2]
[359701275,1746264639352,-400.0,0.00019171,2]
[359701276,1746264639362,-500.0,0.00019173,2]
[359701277,1746264639371,-500.93613583,0.00019173,2]
[359701278,1746264639380,-500.0,0.00019173,2]
[359701279,1746264639390,-500.0,0.00019173,2]
[359701280,1746264639399,-502.63643278,0.00019173,2]
[359701281,1746264639409,-500.0,0.00019173,2]
[359701282,1746264639419,-502.28692997,0.00019173,2]
[359701283,1746264639428,-500.0,0.00019173,2]
[359701284,1746264639438,-1050.48,0.00019173,2]
[359701285,1746264639447,-537.65,0.00019173,2]
[359701286,1746264639457,-400.0,0.00019173,2]
[359701287,1746264639466,-400.0,0.00019173,2]
[359701288,1746264639475,-491.37,0.00019173,2]
[359701289,1746264639485,-400.0,0.00019173,2]
[359701290,1746264639494,-1382.73,0.00019173,2]
[359701291,1746264639504,-931.16,0.00019173,2]
[359701292,1746264639513,-400.0,0.00019173,2]
[359701293,1746264639522,-400.0,0.00019174,2]
[359701294,1746264639531,-400.0,0.00019174,2]
[359701295,1746264639541,-1434.92,0.00019174,2]
[359701296,1746264639550,-400.0,0.00019174,2]
[359701297,1746264639560,-400.0,0.00019174,2]
[359701298,1746264639570,-400.0,0.00019174,2]
[359701299,1746264639579,-400.0,0.00019174,2]
[359701300,1746264639589,-427.83,0.00019174,2]
[359701301,1746264639598,-400.0,0.00019174,2]
[359701302,1746264639608,-400.0,0.00019174,2]
[359701303,1746264639618,-400.0,0.00019174,2]
[359701304,1746264639628,-407.19,0.00019174,2]
[359701305,1746264639638,-400.0,0.00019174,2]
[359701306,1746264639647,-400.0,0.00019174,2]
[359701307,1746264639657,-400.0,0.00019174,2]
[359701308,1746264639665,-400.0,0.00019174,2]
[359701309,1746264639675,-400.0,0.00019174,2]
[359701310,1746264639684,-400.0,0.00019174,2]
[359701311,1746264639694,-400.0,0.00019174,2]
[359701312,1746264639703,-400.0,0.00019174,2]
[359701313,1746264639713,-400.0,0.00019174,2]
[359701314,1746264639722,-400.0,0.00019174,2]
[359701315,1746264639731,-400.0,0.00019174,2]
[359701316,1746264639740,-400.0,0.00019174,2]
[359701317,1746264639750,-400.0,0.00019174,2]
[359701318,1746264639759,-400.0,0.00019174,2]
[359701319,1746264639768,-498.05,0.00019174,2]
[359701320,1746264639778,-562.65,0.00019174,2]
[359701321,1746264639789,-400.0,0.00019174,2]
[359701322,1746264639798,-400.0,0.00019174,2]
[359701323,1746264639807,-400.0,0.00019174,2]
[359701324,1746264639817,-609.68,0.00019174,2]
[359701325,1746264639826,-400.0,0.00019174,2]
[359701326,1746264639835,-400.0,0.00019174,2]
[359701327,1746264639845,-400.0,0.00019174,2]
[359701328,1746264639854,-400.0,0.00019174,2]
[359701329,1746264639863,-283.37468085,0.00019174,2]
[359701330,1746264639872,-400.0,0.00019174,2]
[359701331,1746264639882,-400.0,0.00019174,2]
[359701332,1746264639891,-400.0,0.00019174,2]
[359701333,1746264639901,-400.0,0.00019174,2]
[359701334,1746264639910,-400.0,0.00019174,2]
[359701335,1746264639919,-741.37,0.00019174,2]
[359701336,1746264639929,-400.0,0.00019174,2]
[359701337,1746264639938,-400.0,0.00019174,2]
[359701339,1746264639948,-400.0,0.00019176,2]
[359701340,1746264639957,-400.0,0.00019176,2]
[359701341,1746264639967,-400.0,0.00019176,2]
[359701342,1746264639976,-400.0,0.00019176,2]
[359701343,1746264639987,-400.0,0.00019176,2]
[359701344,1746264639997,-400.0,0.00019176,2]
[359701345,1746264640006,-400.0,0.00019176,2]
[359701346,1746264640016,-400.0,0.00019176,2]
[359701347,1746264640025,-400.0,0.00019176,2]
[359701348,1746264640034,-400.0,0.00019176,2]
[359701349,1746264640044,-400.0,0.00019176,2]
[359701350,1746264640054,-400.0,0.00019176,2]
[359701351,1746264640063,-209.6059804,0.00019176,2]
[359701352,1746264640076,-400.0,0.00019176,2]
[359701353,1746264640085,-406.3438556,0.00019176,2]
[359701354,1746264640095,-400.0,0.00019176,2]
[359701355,1746264640104,-400.0,0.00019176,2]
[359701356,1746264640114,-400.0,0.00019176,2]
[359701357,1746264640123,-400.0,0.00019176,2]
[359701358,1746264640132,-400.0,0.00019176,2]
[359701359,1746264640142,-400.0,0.00019176,2]
[359701360,1746264640151,-400.0,0.00019176,2]
[359701361,1746264640160,-257.36231343,0.00019176,2]
[359701366,1746264640344,201.83,0.00021,10]
[359702134,1746265097420,184.0,0.00021,10]
[359702157,1746265625118,-159.67846778,0.000188,2]
[359702158,1746265625138,-500.0,0.000189,2]
[359702159,1746265625157,-150.0,0.000189,2]
[359702160,1746265625177,-354.62045346,0.00018968,2]
[359702161,1746265625195,-544.32495349,0.00019,2]
[359702162,1746265644140,-960.05014539,0.00019,2]
[359702163,1746265644168,-300.0,0.00019066,2]
[359702164,1746265644194,-300.0,0.00019066,2]
[359702165,1746265644221,-300.0,0.00019066,2]
[359702166,1746265644247,-531.0,0.00019066,2]
[359702167,1746265644275,-300.0,0.00019066,2]
[359702168,1746265644300,-500.0,0.00019066,2]
[359702169,1746265644332,-500.0,0.00019066,2]
[359702170,1746265644355,-363.38177416,0.00019066,2]
[359702171,1746265644381,-163.79560358,0.00019066,2]
[359702172,1746265644404,-451.02008628,0.00019066,2]
[359702173,1746265644433,-500.0,0.00019066,2]
[359702174,1746265644456,-440.8729947,0.00019066,2]
[359702175,1746265644487,-500.0,0.00019066,2]
[359702176,1746265644519,-500.0,0.00019066,2]
[359702177,1746265644547,-500.0,0.00019066,2]
[359702178,1746265644574,-500.0,0.00019066,2]
[359702179,1746265644603,-500.0,0.00019066,2]
[359702180,1746265644636,-500.0,0.00019066,2]
[359702181,1746265644664,-500.0,0.00019066,2]
[359702182,1746265644691,-216.30451664,0.00019066,2]
[359702183,1746265644720,-371.91528586,0.00019066,2]
[359702187,1746265768188,-12687.663673,0.00018307,2]
[359702188,1746265768210,-367.87951675,0.00018713,2]
[359702208,1746265832544,-267.89606802,0.00018713,2]
[359702210,1746265832554,-150.0,0.000189,2]
[359702212,1746265832564,-300.0,0.00019065,2]
[359702214,1746265832573,-128.08471414,0.00019066,2]
[359702216,1746265832583,-500.0,0.00019066,2]
[359702218,1746265832592,-500.0,0.00019066,2]
[359702220,1746265832602,-500.0,0.00019066,2]
[359702222,1746265832611,-500.0,0.00019066,2]
[359702224,1746265832621,-500.0,0.00019066,2]
[359702226,1746265832631,-500.0,0.00019066,2]
[359702228,1746265832640,-500.0,0.00019066,2]
[359702230,1746265832653,-500.0,0.00019066,2]
[359702232,1746265832663,-500.0,0.00019066,2]
[359702234,1746265832672,-500.0,0.00019066,2]
[359702236,1746265832681,-400.0,0.00019067,2]
[359702238,1746265832691,-400.0,0.00019067,2]
[359702240,1746265832701,-400.0,0.00019067,2]
[359702242,1746265832710,-442.82,0.00019067,2]
[359702244,1746265832720,-400.0,0.00019067,2]
[359702246,1746265832730,-400.0,0.00019067,2]
[359702248,1746265832740,-400.0,0.00019067,2]
[359702250,1746265832749,-400.0,0.00019067,2]
[359702252,1746265832759,-479.07,0.00019067,2]
[359702255,1746265832768,-400.0,0.00019067,2]
[359702258,1746265832777,-657.67,0.00019067,2]
[359702260,1746265832786,-1151.65,0.00019067,2]
[359702262,1746265832796,-400.0,0.00019067,2]
[359702264,1746265832806,-400.0,0.00019067,2]
[359702266,1746265832815,-400.0,0.00019067,2]
[359702268,1746265832824,-400.0,0.00019067,2]
[359702270,1746265832833,-400.0,0.00019067,2]
[359702273,1746265832844,-400.0,0.00019067,2]
[359702275,1746265832853,-525.02,0.00019067,2]
[359702277,1746265832862,-400.0,0.00019067,2]
[359702279,1746265832872,-400.0,0.00019067,2]
[359702281,1746265832881,-400.0,0.00019067,2]
[359702283,1746265832891,-544.44,0.00019067,2]
[359702285,1746265832900,-400.0,0.00019067,2]
[359702287,1746265832910,-400.0,0.00019067,2]
[359702289,1746265832919,-400.0,0.00019067,2]
[359702290,1746265832929,-400.0,0.00019067,2]
[359702291,1746265832937,-400.0,0.00019067,2]
[359702292,1746265832947,-400.0,0.00019067,2]
[359702293,1746265832956,-400.0,0.00019067,2]
[359702294,1746265832965,-437.57,0.00019067,2]
[359702295,1746265832974,-400.0,0.00019067,2]
[359702296,1746265832983,-400.0,0.00019067,2]
[359702297,1746265832992,-400.0,0.00019067,2]
[359702298,1746265833001,-400.0,0.00019067,2]
[359702299,1746265833011,-1077.5,0.00019067,2]
[359702300,1746265833020,-400.0,0.00019067,2]
[359702301,1746265833029,-400.0,0.00019067,2]
[359702302,1746265833038,-400.0,0.00019067,2]
[359702303,1746265833048,-400.0,0.00019067,2]
[359702304,1746265833057,-400.0,0.00019067,2]
[359702305,1746265833066,-533.83,0.00019067,2]
[359702306,1746265833076,-400.0,0.00019067,2]
[359702307,1746265833085,-400.0,0.00019067,2]
[359702308,1746265833095,-400.0,0.00019067,2]
[359702309,1746265833104,-229.17417251,0.00019067,2]
[359702310,1746265833114,-970.52,0.00019067,2]
[359702311,1746265833123,-400.0,0.00019067,2]
[359702312,1746265833133,-403.20084845,0.00019067,2]
[359702314,1746265833143,-649.29,0.00019067,2]
[359702316,1746265833152,-400.0,0.00019067,2]
[359702317,1746265833162,-400.0,0.00019067,2]
[359702319,1746265833172,-618.8,0.00019067,2]
[359702321,1746265833181,-441.97,0.00019067,2]
[359702323,1746265833190,-779.56621282,0.00019067,2]
[359702328,1746265833225,-1842.68378718,0.00019067,2]
[359702330,1746265833234,-400.0,0.00019067,2]
[359702332,1746265833244,-400.0,0.00019067,2]
[359702334,1746265833253,-188.42095628,0.00019067,2]
[359702336,1746265833263,-152.35008883,0.00019068,2]
[359702338,1746265833272,-1375.13,0.00019068,2]
[359702340,1746265833282,-400.0,0.00019068,2]
[359702342,1746265833290,-78.85714832,0.00019068,2]
[359702344,1746265833302,-321.14285168,0.00019068,2]
[359702346,1746265833311,-361.17,0.00019068,2]
[359702348,1746265833321,-434.64,0.00019068,2]
[359702350,1746265833331,-410.0,0.00019068,2]
[359702352,1746265833340,-400.0,0.00019068,2]
[359702354,1746265833350,-400.0,0.00019068,2]
[359702356,1746265833360,-400.0,0.00019068,2]
[359702358,1746265833369,-400.0,0.00019068,2]
[359702360,1746265833379,-400.0,0.00019068,2]
[359702362,1746265833388,-400.0,0.00019068,2]
[359702364,1746265833397,-400.0,0.00019068,2]
[359702366,1746265833407,-400.0,0.00019068,2]
[359702367,1746265833416,-400.0,0.00019068,2]
[359702368,1746265833425,-400.0,0.00019068,2]
[359702369,1746265833435,-272.05359725,0.00019068,2]
[359702370,1746265833444,-400.0,0.00019068,2]
[359702371,1746265833453,-400.0,0.00019068,2]
[359702372,1746265833463,-400.0,0.00019068,2]
[359702373,1746265833473,-400.0,0.00019068,2]
[359702374,1746265833483,-400.0,0.00019068,2]
[359702375,1746265833493,-400.0,0.00019068,2]
[359702376,1746265833502,-400.0,0.00019068,2]
[359702377,1746265833512,-539.21,0.00019068,2]
[359702378,1746265833521,-477.3,0.00019068,2]
[359702379,1746265833531,-400.0,0.00019068,2]
[359702380,1746265833541,-185.71711357,0.00019068,2]
[359702389,1746265838597,-424.37,0.00019067,2]
[359702390,1746265838606,-214.28288643,0.00019068,2]
[359702391,1746265838616,-400.0,0.00019068,2]
[359702392,1746265838625,-584.28,0.00019068,2]
[359702393,1746265838634,-448.0829428,0.00019068,2]
[359702394,1746265838647,-329.51291511,0.00019068,2]
[359702442,1746265840958,-229.11414209,0.00019068,2]
[359702444,1746265840967,-449.55979193,0.00019068,2]
[359702450,1746265841010,-65.69020807,0.00019068,2]
[359702452,1746265841020,-400.0,0.00019068,2]
[359702454,1746265841029,-400.0,0.00019068,2]
[359702456,1746265841039,-2380.47,0.00019068,2]
[359702458,1746265841047,-400.0,0.00019068,2]
[359702460,1746265841057,-400.0,0.00019068,2]
[359702462,1746265841066,-400.0,0.00019068,2]
[359702464,1746265841075,-400.0,0.00019068,2]
[359702466,1746265841085,-400.0,0.00019068,2]
[359702468,1746265841094,-400.0,0.00019068,2]
[359702470,1746265841103,-400.0,0.00019068,2]
[359702472,1746265841112,-470.9,0.00019068,2]
[359702475,1746265841122,-400.0,0.00019068,2]
[359702477,1746265841131,-90.79719183,0.00019068,2]
[359703248,1746266826121,-170.86238747,0.00018207,2]
[359703250,1746266845142,-13686.22239124,0.00018061,2]
[359703253,1746266946675,156.693955,0.0002016,10]
[359703254,1746266946818,1000.0,0.00018,2]
[359703255,1746266953173,-8521.10697226,0.00018061,2]
[359703257,1746266953194,-252.44711176,0.00018207,2]
[359703258,1746266953214,-282.51870807,0.00018212,2]
[359703286,1746267031758,-50.78997173,0.00018212,2]
[359703288,1746267031769,-270.00669769,0.0001863,2]
[359703290,1746267031779,-600.73530801,0.00018959,2]
[359703292,1746267031791,-330.47,0.00019052,3]
[359703294,1746267031801,-151.0,0.00019053,2]
[359703296,1746267031811,-300.0,0.00019058,2]
[359703298,1746267031822,-300.0,0.00019058,2]
[359703300,1746267031832,-209.0,0.00019058,2]
[359703302,1746267031842,-1200.0,0.00019058,2]
[359703304,1746267031852,-300.0,0.00019058,2]
[359703307,1746267031865,-500.0,0.00019059,2]
[359703309,1746267031875,-500.0,0.00019059,2]
[359703311,1746267031886,-500.0,0.00019059,2]
[359703313,1746267031896,-500.0,0.00019059,2]
[359703315,1746267031906,-500.0,0.00019059,2]
[359703317,1746267031917,-500.0,0.00019059,2]
[359703319,1746267031928,-500.0,0.00019059,2]
[359703321,1746267031939,-500.0,0.00019059,2]
[359703323,1746267031949,-500.0,0.00019059,2]
[359703326,1746267031961,-500.0,0.00019059,2]
[359703328,1746267031972,-500.0,0.00019059,2]
[359703330,1746267031982,-500.0,0.00019059,2]
[359703332,1746267031993,-500.0,0.00019059,2]
[359703334,1746267032003,-500.0,0.00019059,2]
[359703336,1746267032014,-500.0,0.00019059,2]
[359703338,1746267032024,-500.0,0.00019059,2]
[359703340,1746267032034,-547.08509368,0.00019059,2]
[359703342,1746267032044,-500.0,0.00019059,2]
[359703344,1746267032055,-556.17100197,0.00019059,2]
[359703347,1746267032066,-500.0,0.00019059,2]
[359703349,1746267032076,-500.0,0.00019059,2]
[359703351,1746267032086,-13195.47948182,0.0001906,2]
[359703353,1746267032099,-23141.83730486,0.0001906,2]
[359703903,1746267037964,-4721.0901118,0.0001906,2]
[359703905,1746267037977,-4088.9128643,0.0001906,2]
[359703906,1746267037990,-2500.0,0.0001906,2]
[359703907,1746267038003,-72070.88023722,0.0001906,2]
[359703908,1746267038014,-404.85,0.00019062,2]
[359703909,1746267038024,-24.26976278,0.00019062,2]
[359703910,1746267038124,-375.73023722,0.00019062,2]
[359703911,1746267038135,-558.33,0.00019062,2]
[359703912,1746267038147,-400.0,0.00019062,2]
[359703913,1746267038158,-400.0,0.00019062,2]
[359703914,1746267038169,-930.08,0.00019062,2]
[359703915,1746267038179,-2512.99,0.00019062,2]
[359703916,1746267038189,-400.0,0.00019062,2]
[359703917,1746267038200,-446.92,0.00019062,2]
[359703918,1746267038211,-400.0,0.00019062,2]
[359703919,1746267038222,-493.11,0.00019063,2]
[359703920,1746267038232,-1103.66,0.00019063,2]
[359703921,1746267038244,-666.47,0.00019063,2]
[359703922,1746267038262,-400.0,0.00019063,2]
[359703923,1746267038282,-541.13,0.00019063,2]
[359703924,1746267038296,-400.0,0.00019063,2]
[359703925,1746267038309,-561.61,0.00019063,2]
[359703926,1746267038322,-400.0,0.00019063,2]
[359703927,1746267038334,-400.0,0.00019063,2]
[359703928,1746267038346,-419.33,0.00019063,2]
[359703929,1746267038359,-1032.6,0.00019063,2]
[359703930,1746267038373,-400.0,0.00019063,2]
[359703931,1746267038385,-622.24,0.00019063,2]
[359703932,1746267038396,-400.0,0.00019063,2]
[359703933,1746267038408,-593.02,0.00019063,2]
[359703934,1746267038419,-400.0,0.00019063,2]
[359703935,1746267038431,-400.0,0.00019063,2]
[359703936,1746267038443,-414.94460925,0.00019064,2]
[359703937,1746267038455,-1317.83,0.00019064,2]
[359703938,1746267038466,-400.0,0.00019064,2]
[359703939,1746267038477,-400.0,0.00019064,2]
[359703940,1746267038489,-400.0,0.00019064,2]
[359703941,1746267038500,-227.34527054,0.00019064,2]
[359703942,1746267038512,-546.13084289,0.00019064,2]
[359703943,1746267038523,-400.0,0.00019064,2]
[359703944,1746267038535,-163.16382507,0.00019064,2]
[359703945,1746267038547,-400.0,0.00019064,2]
[359703946,1746267038559,-517.57950928,0.00019064,2]
[359703947,1746267038571,-400.0,0.00019064,2]
[359703948,1746267038582,-400.0,0.00019064,2]
[359703949,1746267038592,-400.0,0.00019064,2]
[359703950,1746267038602,-400.0,0.00019064,2]
[359703951,1746267038613,-507.57829464,0.00019064,2]
[359703952,1746267038624,-400.0,0.00019064,2]